[Event "GER-ch Youth U10 2019"]
[Site "Willingen"]
[Date "2019.06.12"]
[Round "6.1"]
[White "Grabs, Peter"]
[Black "Helms, Finn"]
[Result "0-1"]
[ECO "B13"]
[WhiteElo "1575"]
[BlackElo "1773"]
[Annotator "NA"]
[PlyCount "70"]
[EventDate "2019.06.07"]
[EventType "swiss"]
[EventRounds "11"]
[EventCountry "GER"]
[SourceTitle "playchess.com"]
[Source "ChessBase"]
[SourceQuality "1"]
[TimeControl "40/4500+30:900+30"]

1. e4 {[%emt 0:00:00]} c6 {[%emt 0:00:00]} 2. d4 {[%emt 0:00:00]} d5 {[%emt 0:00:00]} 3. exd5 {[%emt 0:00:00]} cxd5 {[%emt 0:00:00]} 4. Bd3 {[%emt 0:00:00]} Nc6 {[%emt 0:00:00]} 5. c3 {[%emt 0:00:07]} Qc7 {[%emt 0:00:00]} 6. Ne2 {[%emt 0:00:33]} Bg4 {[%emt 0:00:04]} 7. f3 {[%emt 0:00:33]} Bh5 {[%emt 0:00:10]} 8. O-O {[%emt 0:00:19]} Nf6 {[%emt 0:00:17]} 9. Bf4 {[%emt 0:00:45]} Qd7 {[%emt 0:00:13]} 10. Re1 {[%emt 0:01:15]} e6 {[%emt 0:00:29]} 11. Nd2 {[%emt 0:13:52]} Bd6 {[%emt 0:00:50]} 12. Bxd6 {[%emt 0:03:00]} Qxd6 {[%emt 0:00:06]} 13. Ng3 {[%emt 0:02:18]} O-O {[%emt 0:01:19]} 14. Ndf1 {[%emt 0:05:11]} Bg6 {[%emt 0:00:55]} 15. Bxg6 {[%emt 0:00:51]} hxg6 {[%emt 0:00:19]} 16. Qd3 {[%emt 0:02:42]} a6 {[%emt 0:01:47]} 17. Nh1 {[%emt 0:06:56]} b5 {[%emt 0:00:27]} 18. Nf2 {[%emt 0:01:59]} b4 {[%emt 0:00:36]} 19. Ne3 {[%emt 0:02:23]} bxc3 {[%emt 0:00:29]} 20. bxc3 {[%emt 0:00:59]} Na5 {[%emt 0:00:32]} 21. Rac1 {[%emt 0:10:12]} Rac8 {[%emt 0:03:22]} 22. c4 {[%emt 0:01:32]} Nxc4 {[%emt 0:01:36]} 23. Nxc4 {[%emt 0:01:35]} Rxc4 {[%emt 0:00:37]} 24. Rxc4 {[%emt 0:00:10]} dxc4 {[%emt 0:00:04]} 25. Qxc4 {[%emt 0:00:06]} Rd8 {[%emt 0:00:29]} 26. Rd1 {[%emt 0:00:59]} Nd5 {[%emt 0:02:40]} 27. Ne4 {[%emt 0:14:08]} Qb6 {[%emt 0:04:05]} 28. Kf2 {[%emt 0:01:02]} Nf4 {[%emt 0:05:50]} 29. g3 {[%emt 0:02:29]} Nd5 {[%emt 0:01:08]} 30. Qc5 {[%emt 0:01:38]} Qb7 {[%emt 0:01:58]} 31. Rd2 {[%emt 0:01:13]} Qb1 {[%emt 0:06:43]} 32. Qa3 {[%emt 0:07:22]} Qb6 {[%emt 0:09:31]} 33. Qc5 {[%emt 0:00:00]} a5 {[%emt 0:01:19]} 34. Qxb6 {[%emt 0:02:06]} Nxb6 {[%emt 0:00:06]} 35. Nc5 {[%emt 0:00:08]} e5 {[%emt 0:00:50] normal} 0-1

[Event "GER-ch Youth U10 2019"]
[Site "Willingen"]
[Date "2019.06.12"]
[Round "6.2"]
[White "Navarro Jahnke, Leo"]
[Black "Besou, Hussain"]
[Result "0-1"]
[ECO "A45"]
[WhiteElo "1334"]
[BlackElo "1785"]
[Annotator "NA"]
[PlyCount "22"]
[EventDate "2019.06.07"]
[EventType "swiss"]
[EventRounds "11"]
[EventCountry "GER"]
[SourceTitle "playchess.com"]
[Source "ChessBase"]
[SourceQuality "1"]
[TimeControl "40/4500+30:900+30"]

1. d4 {[%emt 0:00:00]} Nf6 {[%emt 0:00:00]} 2. Bf4 e6 {[%emt 0:00:00]} 3. e3 {[%emt 0:00:00]} b6 {[%emt 0:00:00]} 4. c3 {[%emt 0:00:13]} Bb7 5. Nd2 {[%emt 0:00:12]} Be7 {[%emt 0:00:30]} 6. Be2 {[%emt 0:00:12]} Bxg2 {[%emt 0:00:13]} 7. Bf3 {[%emt 0:00:25]} Bxh1 {[%emt 0:00:55]} 8. Bxh1 {[%emt 0:00:01]} Nc6 {[%emt 0:00:17]} 9. Qa4 {[%emt 0:00:14]} Nd5 {[%emt 0:00:46]} 10. Bg3 {[%emt 0:00:52]} b5 {[%emt 0:01:43]} 11. Qa6 {[%emt 0:01:42]} Rb8 {[%emt 0:00:07] normal} 0-1

[Event "GER-ch Youth U10 2019"]
[Site "Willingen"]
[Date "2019.06.12"]
[Round "6.3"]
[White "Sommer, Justus"]
[Black "Sauer, Tim"]
[Result "1-0"]
[ECO "B13"]
[WhiteElo "1684"]
[BlackElo "1553"]
[Annotator "NA"]
[PlyCount "71"]
[EventDate "2019.06.07"]
[EventType "swiss"]
[EventRounds "11"]
[EventCountry "GER"]
[SourceTitle "playchess.com"]
[Source "ChessBase"]
[SourceQuality "1"]
[TimeControl "40/4500+30:900+30"]

1. e4 {[%emt 0:01:06]} c6 {[%emt 0:00:00]} 2. d4 {[%emt 0:00:07]} d5 {[%emt 0:00:00]} 3. exd5 {[%emt 0:00:11]} cxd5 {[%emt 0:00:00]} 4. Bd3 {[%emt 0:00:15]} Nc6 {[%emt 0:00:00]} 5. c3 {[%emt 0:00:11]} g6 {[%emt 0:00:06]} 6. Bf4 {[%emt 0:00:49]} Bg7 {[%emt 0:00:08]} 7. Nf3 {[%emt 0:00:44]} Nh6 {[%emt 0:00:31]} 8. O-O {[%emt 0:01:18]} O-O {[%emt 0:00:18]} 9. Re1 {[%emt 0:00:34]} f6 {[%emt 0:01:10]} 10. Bc2 {[%emt 0:05:11]} Nf7 {[%emt 0:01:17]} 11. Nbd2 {[%emt 0:01:27]} e5 {[%emt 0:00:36]} 12. dxe5 {[%emt 0:03:11]} fxe5 {[%emt 0:00:10]} 13. Be3 {[%emt 0:01:17]} e4 {[%emt 0:04:19]} 14. Nd4 {[%emt 0:00:34]} Nfe5 {[%emt 0:02:39]} 15. Nxc6 {[%emt 0:06:18]} bxc6 {[%emt 0:01:45]} 16. Bc5 {[%emt 0:02:04]} Rf7 {[%emt 0:00:17]} 17. c4 {[%emt 0:03:19]} Qg5 {[%emt 0:03:11]} 18. Be3 {[%emt 0:07:44]} Qh4 {[%emt 0:02:30]} 19. Qe2 {[%emt 0:04:54]} Bg4 {[%emt 0:12:04]} 20. Qf1 {[%emt 0:02:59]} Nf3+ {[%emt 0:13:47]} 21. Nxf3 {[%emt 0:00:49]} exf3 {[%emt 0:00:43]} 22. g3 {[%emt 0:00:21]} Qf6 {[%emt 0:09:59]} 23. cxd5 {[%emt 0:08:51]} cxd5 {[%emt 0:01:04]} 24. Bb3 {[%emt 0:00:30]} Rd7 {[%emt 0:00:59]} 25. Rad1 {[%emt 0:01:39]} Be6 {[%emt 0:02:48]} 26. Bd4 {[%emt 0:02:22]} Qf7 {[%emt 0:00:20]} 27. Bxg7 {[%emt 0:00:21]} Kxg7 {[%emt 0:00:03]} 28. Qd3 {[%emt 0:01:30]} Rd6 {[%emt 0:03:57]} 29. Re3 {[%emt 0:03:36]} Rf8 {[%emt 0:00:32]} 30. Rde1 {[%emt 0:00:19]} Qf6 {[%emt 0:01:08]} 31. Qd2 {[%emt 0:01:44]} Qf5 {[%emt 0:03:58]} 32. Qd3 {[%emt 0:02:38]} Qf6 {[%emt 0:02:23]} 33. Re5 {[%emt 0:02:24]} Qf7 {[%emt 0:03:25]} 34. Qe3 {[%emt 0:01:46]} Rc8 {[%emt 0:01:50]} 35. h4 {[%emt 0:04:04]} d4 {[%emt 0:04:02] normal} 36. Qe4 {[%emt 0:03:11] normal} 1-0

[Event "GER-ch Youth U10 2019"]
[Site "Willingen"]
[Date "2019.06.12"]
[Round "6.4"]
[White "Haubold, Christian Lucas"]
[Black "Freude, Paul"]
[Result "1-0"]
[ECO "B90"]
[WhiteElo "1387"]
[BlackElo "1713"]
[Annotator "NA"]
[PlyCount "36"]
[EventDate "2019.06.07"]
[EventType "swiss"]
[EventRounds "11"]
[EventCountry "GER"]
[SourceTitle "playchess.com"]
[Source "ChessBase"]
[SourceQuality "1"]
[TimeControl "40/4500+30:900+30"]

1. e4 {[%emt 0:00:00]} c5 {[%emt 0:00:00]} 2. Nf3 {[%emt 0:00:00]} d6 {[%emt 0:00:00]} 3. d4 {[%emt 0:00:00]} cxd4 {[%emt 0:00:00]} 4. Nxd4 {[%emt 0:00:10]} Nf6 {[%emt 0:00:00]} 5. Nc3 {[%emt 0:00:13]} a6 {[%emt 0:00:06]} 6. Qf3 {[%emt 0:00:44]} g6 {[%emt 0:00:19]} 7. Be3 {[%emt 0:00:28]} Qc7 {[%emt 0:03:32]} 8. h3 {[%emt 0:03:32]} Bg7 {[%emt 0:00:41]} 9. O-O-O {[%emt 0:00:39]} e5 {[%emt 0:02:42]} 10. Nb3 {[%emt 0:04:54]} a5 {[%emt 0:07:31]} 11. Nb5 Qc6 {[%emt 0:01:29]} 12. Nxd6+ {[%emt 0:03:42]} Kf8 {[%emt 0:00:33]} 13. Nxc8 {[%emt 0:04:16]} Qxc8 {[%emt 0:00:30]} 14. Bc5+ {[%emt 0:00:23]} Kg8 {[%emt 0:01:12]} 15. Be7 {[%emt 0:03:39]} Nbd7 {[%emt 0:00:52]} 16. Bb5 {[%emt 0:08:23]} a4 {[%emt 0:02:02]} 17. Na1 {[%emt 0:10:22]} Ra5 {[%emt 0:02:28]} 18. Bxd7 {[%emt 0:04:05]} Nxd7 {[%emt 0:01:17] normal} 1-0

[Event "GER-ch Youth U10 2019"]
[Site "Willingen"]
[Date "2019.06.12"]
[Round "6.5"]
[White "Arora, Abhiraaj"]
[Black "Fietz, Nils"]
[Result "1-0"]
[ECO "C42"]
[WhiteElo "1454"]
[BlackElo "1677"]
[Annotator "NA"]
[PlyCount "77"]
[EventDate "2019.06.07"]
[EventType "swiss"]
[EventRounds "11"]
[EventCountry "GER"]
[SourceTitle "playchess.com"]
[Source "ChessBase"]
[SourceQuality "1"]
[TimeControl "40/4500+30:900+30"]

1. e4 {[%emt 0:00:00]} e5 {[%emt 0:00:00]} 2. Nf3 {[%emt 0:00:00]} Nf6 {[%emt 0:00:00]} 3. Nxe5 {[%emt 0:00:00]} d6 {[%emt 0:00:10]} 4. Nf3 {[%emt 0:00:00]} Nxe4 {[%emt 0:00:03]} 5. Nc3 {[%emt 0:00:14]} Nxc3 {[%emt 0:00:12]} 6. dxc3 {[%emt 0:00:07]} Be7 {[%emt 0:00:10]} 7. Be3 {[%emt 0:00:11]} O-O {[%emt 0:00:17]} 8. Qd2 {[%emt 0:00:39]} Nc6 {[%emt 0:00:35]} 9. h4 {[%emt 0:02:35]} Ne5 {[%emt 0:02:52]} 10. h5 {[%emt 0:05:29]} Bg4 {[%emt 0:02:13]} 11. Ng5 {[%emt 0:01:58]} h6 {[%emt 0:02:36]} 12. Ne4 {[%emt 0:06:57]} d5 {[%emt 0:13:11]} 13. Ng3 {[%emt 0:02:16]} Nc4 {[%emt 0:01:42]} 14. Qc1 {[%emt 0:03:54]} Nxe3 {[%emt 0:01:02]} 15. Qxe3 {[%emt 0:03:33]} Re8 {[%emt 0:00:26]} 16. Qd3 {[%emt 0:05:17]} Bh4+ {[%emt 0:04:42]} 17. Ne2 {[%emt 0:02:57]} Bxh5 {[%emt 0:01:57]} 18. g3 {[%emt 0:04:03]} Bxe2 {[%emt 0:00:22]} 19. Bxe2 {[%emt 0:00:08]} Bf6 {[%emt 0:00:33]} 20. O-O-O {[%emt 0:00:33]} c6 {[%emt 0:00:54]} 21. f4 {[%emt 0:02:52]} Qb6 {[%emt 0:00:36]} 22. Rd2 {[%emt 0:10:19]} Re3 {[%emt 0:01:08]} 23. Qf5 {[%emt 0:01:09]} Rxg3 {[%emt 0:00:32]} 24. Bd3 {[%emt 0:01:55]} g6 {[%emt 0:01:42]} 25. Qxf6 {[%emt 0:03:08]} Re8 {[%emt 0:00:28]} 26. Qh4 {[%emt 0:03:37]} Rg1+ {[%emt 0:01:04]} 27. Rd1 {[%emt 0:01:06]} Qe3+ {[%emt 0:01:02]} 28. Kb1 {[%emt 0:00:11]} Rxd1+ {[%emt 0:01:48]} 29. Rxd1 {[%emt 0:00:12]} h5 {[%emt 0:00:31]} 30. b3 {[%emt 0:00:59]} Qc5 {[%emt 0:01:33]} 31. f5 {[%emt 0:02:35]} Kg7 {[%emt 0:02:12]} 32. Kb2 {[%emt 0:03:01]} Qe7 {[%emt 0:02:03]} 33. Qg3 {[%emt 0:02:17]} Qe3 {[%emt 0:00:46]} 34. Qg2 {[%emt 0:03:45]} Qh6 {[%emt 0:02:07]} 35. Rg1 {[%emt 0:01:19]} Rg8 {[%emt 0:04:30]} 36. Qg3 {[%emt 0:02:42]} Kh7 {[%emt 0:05:11]} 37. Qc7 {[%emt 0:02:02]} Qg7 {[%emt 0:00:38]} 38. fxg6+ {[%emt 0:00:55]} fxg6 {[%emt 0:00:32]} 39. Rxg6 {[%emt 0:00:53] normal} 1-0

[Event "GER-ch Youth U10 2019"]
[Site "Willingen"]
[Date "2019.06.12"]
[Round "6.6"]
[White "Ermitsch, Magnus"]
[Black "Scheerer, Julian"]
[Result "1-0"]
[ECO "C77"]
[WhiteElo "1843"]
[BlackElo "1395"]
[Annotator "NA"]
[PlyCount "103"]
[EventDate "2019.06.07"]
[EventType "swiss"]
[EventRounds "11"]
[EventCountry "GER"]
[SourceTitle "playchess.com"]
[Source "ChessBase"]
[SourceQuality "1"]
[TimeControl "40/4500+30:900+30"]

1. e4 {[%emt 0:00:04]} e5 {[%emt 0:00:00]} 2. Nf3 {[%emt 0:00:44]} Nc6 {[%emt 0:00:23]} 3. Bb5 {[%emt 0:00:56]} a6 {[%emt 0:00:38]} 4. Ba4 {[%emt 0:00:34]} Nf6 {[%emt 0:00:29]} 5. d4 {[%emt 0:01:37]} exd4 {[%emt 0:03:43]} 6. O-O {[%emt 0:01:01]} b5 {[%emt 0:01:36]} 7. Bb3 {[%emt 0:02:07]} h6 {[%emt 0:03:05]} 8. e5 {[%emt 0:02:09]} Nh7 {[%emt 0:03:52]} 9. Nxd4 {[%emt 0:07:07]} Nxd4 {[%emt 0:05:02]} 10. Qxd4 {[%emt 0:00:10]} Bb7 {[%emt 0:00:31]} 11. c3 {[%emt 0:11:35]} Ng5 {[%emt 0:03:09]} 12. f4 {[%emt 0:05:17]} Ne6 {[%emt 0:01:49]} 13. Qf2 {[%emt 0:00:56]} Bc5 {[%emt 0:01:57]} 14. Be3 {[%emt 0:00:06]} Bxe3 {[%emt 0:01:57]} 15. Qxe3 {[%emt 0:00:03]} Qh4 {[%emt 0:01:32]} 16. Qf2 {[%emt 0:06:20]} Qxf2+ {[%emt 0:01:44]} 17. Rxf2 {[%emt 0:00:05]} g5 {[%emt 0:01:30]} 18. f5 {[%emt 0:02:26]} Nf4 {[%emt 0:01:14]} 19. Bc2 {[%emt 0:10:32]} O-O-O {[%emt 0:00:47]} 20. Nd2 {[%emt 0:01:54]} Rde8 {[%emt 0:01:05]} 21. Re1 {[%emt 0:00:16]} d6 {[%emt 0:03:39]} 22. e6 {[%emt 0:00:10]} fxe6 {[%emt 0:01:47]} 23. fxe6 {[%emt 0:00:09]} Rhf8 {[%emt 0:01:50]} 24. Nf3 {[%emt 0:07:11]} Rxe6 {[%emt 0:04:55]} 25. Rxe6 {[%emt 0:01:18]} Nxe6 {[%emt 0:00:11]} 26. Nd4 {[%emt 0:03:14]} Rxf2 {[%emt 0:00:36]} 27. Kxf2 {[%emt 0:00:13]} Nf4 {[%emt 0:02:18]} 28. g3 {[%emt 0:01:32]} Nd5 {[%emt 0:00:24]} 29. Nf5 {[%emt 0:02:36]} h5 {[%emt 0:01:18]} 30. Ng7 {[%emt 0:05:17]} h4 {[%emt 0:00:46]} 31. gxh4 {[%emt 0:00:50]} gxh4 {[%emt 0:00:12]} 32. Nf5 {[%emt 0:00:34]} h3 {[%emt 0:01:03]} 33. Be4 {[%emt 0:07:15]} Kd7 {[%emt 0:02:49]} 34. Ne3 {[%emt 0:02:40]} c6 {[%emt 0:01:16]} 35. Bf5+ {[%emt 0:00:24]} Ke7 {[%emt 0:00:21]} 36. Nxd5+ {[%emt 0:00:38]} cxd5 {[%emt 0:00:10]} 37. Bxh3 {[%emt 0:00:17]} a5 {[%emt 0:00:46]} 38. Ke3 {[%emt 0:00:17]} Kf6 {[%emt 0:00:38]} 39. Kd4 {[%emt 0:00:15]} b4 {[%emt 0:01:40]} 40. cxb4 {[%emt 0:03:28]} axb4 {[%emt 0:00:08]} 41. Bg4 {[%emt 0:01:52]} Bc6 {[%emt 0:00:24]} 42. h4 {[%emt 0:04:37]} Bb7 {[%emt 0:00:11]} 43. h5 {[%emt 0:00:39]} Bc6 {[%emt 0:01:38]} 44. Bf3 {[%emt 0:00:43]} Be8 {[%emt 0:02:10]} 45. b3 {[%emt 0:06:51]} Kg5 {[%emt 0:01:11]} 46. Kxd5 {[%emt 0:02:06]} Kf4 {[%emt 0:00:11]} 47. Bd1 {[%emt 0:01:47]} Ke3 {[%emt 0:01:17]} 48. Kxd6 {[%emt 0:00:35]} Kd3 {[%emt 0:00:37]} 49. h6 {[%emt 0:00:12]} Bg6 {[%emt 0:00:13]} 50. Bh5 {[%emt 0:00:17]} Bh7 {[%emt 0:00:16]} 51. Bf7 {[%emt 0:00:40]} Kc3 {[%emt 0:00:45]} 52. Ke5 {[%emt 0:00:30] normal} 1-0

[Event "GER-ch Youth U10 2019"]
[Site "Willingen"]
[Date "2019.06.12"]
[Round "6.7"]
[White "Malinowsky, Levi"]
[Black "Xue, Luka"]
[Result "1/2-1/2"]
[ECO "C55"]
[WhiteElo "1400"]
[BlackElo "1429"]
[Annotator "NA"]
[PlyCount "75"]
[EventDate "2019.06.07"]
[EventType "swiss"]
[EventRounds "11"]
[EventCountry "GER"]
[SourceTitle "playchess.com"]
[Source "ChessBase"]
[SourceQuality "1"]
[TimeControl "40/4500+30:900+30"]

1. e4 {[%emt 0:00:00]} e5 {[%emt 0:00:00]} 2. Nf3 {[%emt 0:00:00]} Nc6 {[%emt 0:00:00]} 3. d4 {[%emt 0:00:29]} exd4 {[%emt 0:00:00]} 4. Bc4 {[%emt 0:00:40]} Nf6 {[%emt 0:00:11]} 5. e5 {[%emt 0:00:56]} d5 {[%emt 0:00:58]} 6. Bb5 {[%emt 0:00:33]} Ne4 {[%emt 0:01:08]} 7. Nxd4 {[%emt 0:00:42]} Bd7 {[%emt 0:02:16]} 8. Bxc6 {[%emt 0:01:10]} bxc6 {[%emt 0:00:42]} 9. O-O {[%emt 0:03:17]} g6 {[%emt 0:03:16]} 10. f3 {[%emt 0:02:36]} Nc5 {[%emt 0:00:36]} 11. f4 {[%emt 0:01:38]} Bg7 {[%emt 0:01:47]} 12. Be3 {[%emt 0:02:46]} Ne6 {[%emt 0:03:18]} 13. Nc3 {[%emt 0:07:11]} O-O {[%emt 0:03:21]} 14. Qf3 {[%emt 0:05:56]} f6 {[%emt 0:02:22]} 15. Qg3 {[%emt 0:06:26]} Qe7 {[%emt 0:04:28]} 16. Nf3 {[%emt 0:09:41]} Qb4 {[%emt 0:01:25]} 17. Nd1 {[%emt 0:04:10]} Nc5 {[%emt 0:03:20]} 18. a3 {[%emt 0:02:52]} Qb5 {[%emt 0:04:25]} 19. Nc3 {[%emt 0:01:52]} Qb6 {[%emt 0:01:19]} 20. b4 {[%emt 0:02:08]} Ne4 {[%emt 0:00:35]} 21. Bxb6 {[%emt 0:03:46]} Nxg3 {[%emt 0:00:13]} 22. hxg3 {[%emt 0:00:23]} cxb6 23. Rae1 {[%emt 0:01:29]} Rae8 {[%emt 0:01:44]} 24. exf6 {[%emt 0:01:53]} Bxf6 {[%emt 0:00:51]} 25. Ne5 {[%emt 0:03:09]} Re7 {[%emt 0:02:06]} 26. Nxd7 {[%emt 0:00:43]} Rxd7 {[%emt 0:00:18]} 27. Ne2 {[%emt 0:00:54]} Re7 {[%emt 0:00:31]} 28. Nc1 {[%emt 0:01:51]} Rfe8 {[%emt 0:00:22]} 29. Nd3 {[%emt 0:01:01]} Bd4+ {[%emt 0:00:45]} 30. Kh2 {[%emt 0:00:19]} Rxe1 {[%emt 0:00:20]} 31. Rxe1 {[%emt 0:00:19]} Rxe1 {[%emt 0:00:07]} 32. Nxe1 {[%emt 0:00:03]} a5 {[%emt 0:01:40]} 33. Nd3 {[%emt 0:01:11]} c5 {[%emt 0:00:48]} 34. b5 {[%emt 0:02:53]} c4 {[%emt 0:00:50]} 35. Ne1 {[%emt 0:00:15]} a4 {[%emt 0:00:25]} 36. Nf3 {[%emt 0:02:25]} Bc5 {[%emt 0:03:29]} 37. Ne5 {[%emt 0:00:59]} Bxa3 {[%emt 0:01:16]} 38. Nd7 {[%emt 0:00:21] normal} 1/2-1/2

[Event "GER-ch Youth U10 2019"]
[Site "Willingen"]
[Date "2019.06.12"]
[Round "6.8"]
[White "Klaska, Philipp Leon"]
[Black "Ruddat, Jarne"]
[Result "0-1"]
[ECO "B34"]
[WhiteElo "1444"]
[BlackElo "1350"]
[Annotator "NA"]
[PlyCount "86"]
[EventDate "2019.06.07"]
[EventType "swiss"]
[EventRounds "11"]
[EventCountry "GER"]
[SourceTitle "playchess.com"]
[Source "ChessBase"]
[SourceQuality "1"]
[TimeControl "40/4500+30:900+30"]

1. e4 {[%emt 0:00:00]} c5 {[%emt 0:00:00]} 2. Nf3 {[%emt 0:00:00]} g6 {[%emt 0:00:00]} 3. d4 {[%emt 0:00:00]} cxd4 {[%emt 0:00:00]} 4. Nxd4 {[%emt 0:00:00]} Nc6 {[%emt 0:00:00]} 5. Nc3 {[%emt 0:00:05]} Bg7 {[%emt 0:00:01]} 6. Be3 {[%emt 0:00:08]} Nf6 {[%emt 0:01:31]} 7. f3 {[%emt 0:01:03]} O-O {[%emt 0:01:02]} 8. Bc4 {[%emt 0:09:55]} Qb6 {[%emt 0:10:23]} 9. Bb3 {[%emt 0:17:30]} Nxe4 {[%emt 0:13:46]} 10. fxe4 {[%emt 0:12:36]} Bxd4 {[%emt 0:00:15]} 11. Bxd4 {[%emt 0:01:21]} Qxd4 {[%emt 0:00:48]} 12. Qxd4 {[%emt 0:01:30]} Nxd4 {[%emt 0:00:02]} 13. O-O-O {[%emt 0:03:35]} e5 {[%emt 0:02:43]} 14. Nd5 {[%emt 0:09:59]} a5 {[%emt 0:04:23]} 15. Rhf1 {[%emt 0:05:52]} b5 {[%emt 0:06:42]} 16. c3 {[%emt 0:07:11]} Nxb3+ {[%emt 0:02:08]} 17. axb3 {[%emt 0:00:05]} Kg7 {[%emt 0:05:42]} 18. Nb6 {[%emt 0:04:17]} Ra7 {[%emt 0:00:17]} 19. Rd6 {[%emt 0:00:42]} a4 {[%emt 0:00:58]} 20. bxa4 {[%emt 0:00:38]} bxa4 {[%emt 0:00:02]} 21. Rfd1 {[%emt 0:00:52]} a3 {[%emt 0:01:25]} 22. b4 {[%emt 0:00:54]} Rc7 {[%emt 0:05:31]} 23. Kc2 {[%emt 0:01:13]} Rc6 {[%emt 0:01:37]} 24. Rxc6 {[%emt 0:00:07]} dxc6 {[%emt 0:00:04]} 25. Nxc8 {[%emt 0:00:56]} Rxc8 {[%emt 0:00:06]} 26. Kb3 {[%emt 0:00:16]} Ra8 {[%emt 0:00:23]} 27. Ka2 {[%emt 0:00:11]} f5 {[%emt 0:00:08]} 28. Rd7+ {[%emt 0:00:40]} Kf6 {[%emt 0:00:44]} 29. Rd6+ {[%emt 0:00:58]} Ke7 {[%emt 0:01:28]} 30. Rxc6 {[%emt 0:00:24]} fxe4 {[%emt 0:00:02]} 31. Rc4 {[%emt 0:00:12]} Kd6 {[%emt 0:00:12]} 32. Rxe4 {[%emt 0:00:05]} Kd5 {[%emt 0:00:07]} 33. Re3 {[%emt 0:00:27]} h5 {[%emt 0:05:13]} 34. Rg3 {[%emt 0:01:15]} e4 {[%emt 0:00:56]} 35. h4 {[%emt 0:02:28]} Ke5 {[%emt 0:01:26]} 36. c4 {[%emt 0:02:22]} Kd4 {[%emt 0:02:03]} 37. c5 {[%emt 0:00:44]} Re8 {[%emt 0:01:39]} 38. Rxg6 {[%emt 0:00:58]} e3 {[%emt 0:00:04]} 39. Rd6+ {[%emt 0:00:50]} Kc4 {[%emt 0:00:06]} 40. Rd1 {[%emt 0:00:29]} Kxb4 {[%emt 0:00:06]} 41. Re1 {[%emt 0:15:53]} Kxc5 {[%emt 0:15:25]} 42. Kxa3 {[%emt 0:00:09]} Kd4 {[%emt 0:00:58]} 43. Kb3 {[%emt 0:00:11]} Kd3 {[%emt 0:00:08] normal} 0-1

[Event "GER-ch Youth U10 2019"]
[Site "Willingen"]
[Date "2019.06.12"]
[Round "6.9"]
[White "Haubold, Sebastian Marcel"]
[Black "Chugunov, Ivan"]
[Result "1-0"]
[ECO "B01"]
[WhiteElo "1506"]
[BlackElo "1310"]
[Annotator "NA"]
[PlyCount "63"]
[EventDate "2019.06.07"]
[EventType "swiss"]
[EventRounds "11"]
[EventCountry "GER"]
[SourceTitle "playchess.com"]
[Source "ChessBase"]
[SourceQuality "1"]
[TimeControl "40/4500+30:900+30"]

1. e4 {[%emt 0:00:00]} d5 {[%emt 0:00:00]} 2. exd5 {[%emt 0:00:08]} Qxd5 {[%emt 0:00:00]} 3. Nc3 {[%emt 0:00:23]} Qd6 {[%emt 0:00:12]} 4. d4 {[%emt 0:01:10]} Nf6 {[%emt 0:00:06]} 5. Nf3 {[%emt 0:00:42]} c6 {[%emt 0:00:29]} 6. Bg5 {[%emt 0:00:46]} Bg4 7. Be2 {[%emt 0:01:27]} Nbd7 {[%emt 0:03:03]} 8. Qd2 {[%emt 0:01:13]} e6 {[%emt 0:05:04]} 9. O-O {[%emt 0:02:57]} Be7 {[%emt 0:00:47]} 10. a3 {[%emt 0:01:29]} Qc7 {[%emt 0:00:51]} 11. h3 {[%emt 0:03:44]} Bh5 {[%emt 0:01:43]} 12. Rfe1 {[%emt 0:06:46]} O-O {[%emt 0:00:52]} 13. Rad1 {[%emt 0:05:41]} h6 {[%emt 0:01:16]} 14. Bf4 {[%emt 0:01:20]} Qc8 {[%emt 0:01:02]} 15. Qe3 {[%emt 0:04:54]} Nd5 {[%emt 0:01:28]} 16. Nxd5 {[%emt 0:00:47]} cxd5 {[%emt 0:00:09]} 17. c4 {[%emt 0:03:28]} Nf6 {[%emt 0:05:01]} 18. c5 {[%emt 0:01:13]} b6 {[%emt 0:01:00]} 19. b4 {[%emt 0:00:14]} bxc5 {[%emt 0:00:56]} 20. bxc5 {[%emt 0:00:20]} Bg6 {[%emt 0:01:42]} 21. Ne5 {[%emt 0:01:09]} Bh7 {[%emt 0:00:12]} 22. Bd3 {[%emt 0:04:40]} Bxd3 {[%emt 0:02:36]} 23. Rxd3 {[%emt 0:01:33]} Nd7 {[%emt 0:05:46]} 24. Qg3 {[%emt 0:01:33]} Kh7 {[%emt 0:02:04]} 25. Qg4 {[%emt 0:01:56]} Nxe5 {[%emt 0:04:47]} 26. Bxe5 {[%emt 0:01:06]} Rg8 {[%emt 0:01:57]} 27. Rg3 {[%emt 0:01:52]} Qf8 {[%emt 0:01:49]} 28. Rb1 {[%emt 0:04:26]} f6 {[%emt 0:04:37]} 29. Qg6+ {[%emt 0:02:11]} Kh8 {[%emt 0:00:12]} 30. Bf4 {[%emt 0:00:22]} Qe8 {[%emt 0:00:40]} 31. Rb7 {[%emt 0:02:04]} Qxg6 {[%emt 0:01:03]} 32. Rxg6 {[%emt 0:00:10] normal} 1-0